[Event "*** SCC Grand Prix: Titled Tuesday Blitz"]
[Site "Chess.com"]
[Date "2020.09.08"]
[Round "2"]
[White "Sophist4Life"]
[Black "mmaks007"]
[Result "0-1"]
[WhiteElo "2429"]
[BlackElo "2241"]
[TimeControl "180+1"]
[EndTime "10:15:52 PDT"]
[Termination "mmaks007 won on time"]

1. d4 {[%clk 0:00:48.6]} 1... g6 {[%clk 0:02:47.5]} 2. c4 {[%clk 0:00:49.5]}
2... Bg7 {[%clk 0:02:46.5]} 3. Nc3 {[%clk 0:00:50.1]} 3... d6 {[%clk 0:02:45.7]}
4. e4 {[%clk 0:00:50.5]} 4... e5 {[%clk 0:02:44.7]} 5. Nge2 {[%clk 0:00:50.9]}
5... exd4 {[%clk 0:02:43.5]} 6. Nxd4 {[%clk 0:00:51.8]} 6... Nf6 {[%clk
0:02:43.3]} 7. f3 {[%clk 0:00:50.8]} 7... O-O {[%clk 0:02:41.3]} 8. Be3 {[%clk
0:00:51.3]} 8... Re8 {[%clk 0:02:39.9]} 9. Be2 {[%clk 0:00:51.7]} 9... c6 {[%clk
0:02:35.8]} 10. Qd2 {[%clk 0:00:51.9]} 10... d5 {[%clk 0:02:29.4]} 11. cxd5
{[%clk 0:00:51.4]} 11... cxd5 {[%clk 0:02:28.1]} 12. exd5 {[%clk 0:00:51.4]}
12... Nxd5 {[%clk 0:02:23.8]} 13. Nxd5 {[%clk 0:00:51]} 13... Qxd5 {[%clk
0:02:21.4]} 14. Rd1 {[%clk 0:00:49.3]} 14... Qxa2 {[%clk 0:02:17.1]} 15. O-O
{[%clk 0:00:47.4]} 15... Nc6 {[%clk 0:02:14.7]} 16. Nxc6 {[%clk 0:00:46.9]}
16... bxc6 {[%clk 0:02:13.3]} 17. Rfe1 {[%clk 0:00:16.9]} 17... Qxb2 {[%clk
0:02:09]} 18. Qd3 {[%clk 0:00:17.4]} 18... Bf5 {[%clk 0:02:05.3]} 19. Qd2 {[%clk
0:00:12.8]} 19... Qa3 {[%clk 0:02:01.6]} 20. Bf1 {[%clk 0:00:11.9]} 20... Bc3
{[%clk 0:01:58.3]} 21. Qf2 {[%clk 0:00:08]} 21... Bxe1 {[%clk 0:01:57.9]} 22.
Rxe1 {[%clk 0:00:08]} 22... Bd3 {[%clk 0:01:55.9]} 23. Rd1 {[%clk 0:00:06.3]}
23... Bxf1 {[%clk 0:01:55.2]} 0-1

[Event "*** SCC Grand Prix: Titled Tuesday Blitz"]
[Site "Chess.com"]
[Date "2020.09.08"]
[Round "2"]
[White "ChessWarrior7197"]
[Black "Muracle"]
[Result "1-0"]
[WhiteElo "2939"]
[BlackElo "2576"]
[TimeControl "180+1"]
[EndTime "10:16:10 PDT"]
[Termination "ChessWarrior7197 won by resignation"]

1. e4 {[%clk 0:03:00.9]} 1... c5 {[%clk 0:02:59.8]} 2. Nf3 {[%clk 0:02:58.9]}
2... Nc6 {[%clk 0:02:59.7]} 3. Bb5 {[%clk 0:02:58.4]} 3... g6 {[%clk 0:02:59.4]}
4. Bxc6 {[%clk 0:02:57]} 4... dxc6 {[%clk 0:02:59.3]} 5. d3 {[%clk 0:02:57.3]}
5... Bg7 {[%clk 0:02:58]} 6. h3 {[%clk 0:02:58.2]} 6... e5 {[%clk 0:02:56.2]} 7.
Nc3 {[%clk 0:02:58.1]} 7... Nf6 {[%clk 0:02:51.3]} 8. Be3 {[%clk 0:02:57.4]}
8... Nd7 {[%clk 0:02:51.1]} 9. Qd2 {[%clk 0:02:57.2]} 9... h6 {[%clk 0:02:49.1]}
10. O-O {[%clk 0:02:57.5]} 10... Qe7 {[%clk 0:02:49.1]} 11. Ne2 {[%clk 0:02:57]}
11... Nf8 {[%clk 0:02:46.6]} 12. Nh2 {[%clk 0:02:57.5]} 12... Ne6 {[%clk
0:02:46.5]} 13. Rae1 {[%clk 0:02:58.4]} 13... g5 {[%clk 0:02:44.1]} 14. Ng3
{[%clk 0:02:57.7]} 14... Nf4 {[%clk 0:02:42.4]} 15. Nf5 {[%clk 0:02:55.2]} 15...
Bxf5 {[%clk 0:02:41.9]} 16. exf5 {[%clk 0:02:56.1]} 16... O-O-O {[%clk 0:02:33]}
17. Bxf4 {[%clk 0:02:54]} 17... gxf4 {[%clk 0:02:32.8]} 18. Qxf4 {[%clk
0:02:53.2]} 18... Rhg8 {[%clk 0:02:23]} 19. Ng4 {[%clk 0:02:50.8]} 19... f6
{[%clk 0:02:09.4]} 20. Qc4 {[%clk 0:02:44.9]} 20... h5 {[%clk 0:02:07.6]} 21.
Ne3 {[%clk 0:02:38.2]} 21... Bh6 {[%clk 0:02:06.1]} 22. Re2 {[%clk 0:02:35.7]}
22... Kc7 {[%clk 0:02:00.8]} 23. a3 {[%clk 0:02:28.5]} 23... Bf4 {[%clk
0:01:54.1]} 24. b4 {[%clk 0:02:26.8]} 24... cxb4 {[%clk 0:01:39.6]} 25. axb4
{[%clk 0:02:27.7]} 25... Rg5 {[%clk 0:01:38.9]} 26. b5 {[%clk 0:02:25.2]} 26...
Rdg8 {[%clk 0:00:53.8]} 27. Nd5+ {[%clk 0:02:13.9]} 27... Kb8 {[%clk 0:00:45.4]}
28. Nxf4 {[%clk 0:02:11.8]} 28... Qg7 {[%clk 0:00:35.7]} 29. f3 {[%clk
0:02:01.1]} 29... exf4 {[%clk 0:00:32.6]} 30. Qxf4+ {[%clk 0:02:02]} 30... Ka8
{[%clk 0:00:33.1]} 31. g4 {[%clk 0:01:56.3]} 31... cxb5 {[%clk 0:00:32.8]} 32.
Rfe1 {[%clk 0:01:56.1]} 32... Qd7 {[%clk 0:00:29.9]} 33. Re7 {[%clk 0:01:54.1]}
33... Qc6 {[%clk 0:00:30.2]} 34. R1e6 {[%clk 0:01:52.9]} 34... Qc5+ {[%clk
0:00:30.3]} 35. d4 {[%clk 0:01:53.1]} 35... Qc8 {[%clk 0:00:26.6]} 36. Qe4
{[%clk 0:01:53.1]} 1-0

[Event "*** SCC Grand Prix: Titled Tuesday Blitz"]
[Site "Chess.com"]
[Date "2020.09.08"]
[Round "2"]
[White "GasconJR"]
[Black "swimmerchess"]
[Result "0-1"]
[WhiteElo "2544"]
[BlackElo "2854"]
[TimeControl "180+1"]
[EndTime "10:16:10 PDT"]
[Termination "swimmerchess won by resignation"]

1. d4 {[%clk 0:03:00.9]} 1... Nf6 {[%clk 0:02:59.3]} 2. Bf4 {[%clk 0:03:00]}
2... g6 {[%clk 0:02:58.8]} 3. Nc3 {[%clk 0:02:59.4]} 3... d5 {[%clk 0:02:58.8]}
4. e3 {[%clk 0:02:58.5]} 4... Bg7 {[%clk 0:02:58.9]} 5. h4 {[%clk 0:02:58.6]}
5... O-O {[%clk 0:02:58.5]} 6. h5 {[%clk 0:02:58.5]} 6... c5 {[%clk 0:02:59.1]}
7. Nf3 {[%clk 0:01:54]} 7... Nc6 {[%clk 0:02:56.3]} 8. Ne5 {[%clk 0:01:50.3]}
8... cxd4 {[%clk 0:02:45.5]} 9. exd4 {[%clk 0:01:25.3]} 9... Qb6 {[%clk
0:02:45.5]} 10. Nxc6 {[%clk 0:01:11]} 10... bxc6 {[%clk 0:02:46.4]} 11. Na4
{[%clk 0:01:08.7]} 11... Qa5+ {[%clk 0:02:46.3]} 12. c3 {[%clk 0:01:07.6]} 12...
Nd7 {[%clk 0:02:37.7]} 13. hxg6 {[%clk 0:01:04.8]} 13... fxg6 {[%clk 0:02:34.4]}
14. b4 {[%clk 0:00:54.3]} 14... Qd8 {[%clk 0:02:30.5]} 15. Qd2 {[%clk
0:00:51.4]} 15... e5 {[%clk 0:02:30.5]} 16. Bh6 {[%clk 0:00:51]} 16... exd4
{[%clk 0:02:26]} 17. Bxg7 {[%clk 0:00:49.3]} 17... Qe7+ {[%clk 0:02:25.2]} 18.
Be2 {[%clk 0:00:39.7]} 18... Qxg7 {[%clk 0:02:24.9]} 19. Qxd4 {[%clk 0:00:35.4]}
19... Nf6 {[%clk 0:02:11.4]} 20. Nc5 {[%clk 0:00:31.5]} 20... Re8 {[%clk
0:02:04.4]} 21. Kf1 {[%clk 0:00:27]} 21... Bf5 {[%clk 0:02:01.9]} 22. Re1 {[%clk
0:00:26.5]} 22... a5 {[%clk 0:01:56.8]} 23. a3 {[%clk 0:00:09]} 23... axb4
{[%clk 0:01:55.3]} 24. axb4 {[%clk 0:00:08.5]} 24... Ra2 {[%clk 0:01:53.1]} 25.
f3 {[%clk 0:00:05]} 25... Nh5 {[%clk 0:01:47.5]} 26. Rxh5 {[%clk 0:00:04]} 26...
Qxd4 {[%clk 0:01:45.8]} 27. cxd4 {[%clk 0:00:04]} 27... gxh5 {[%clk 0:01:46.4]}
0-1

[Event "*** SCC Grand Prix: Titled Tuesday Blitz"]
[Site "Chess.com"]
[Date "2020.09.08"]
[Round "2"]
[White "Barcelona_Guy"]
[Black "AniJak"]
[Result "1-0"]
[WhiteElo "2657"]
[BlackElo "2343"]
[TimeControl "180+1"]
[EndTime "10:16:11 PDT"]
[Termination "Barcelona_Guy won by resignation"]

1. e4 {[%clk 0:03:00.9]} 1... c6 {[%clk 0:02:58]} 2. Nc3 {[%clk 0:02:58.8]} 2...
d5 {[%clk 0:02:58]} 3. Nf3 {[%clk 0:02:59.3]} 3... Bg4 {[%clk 0:02:58.2]} 4. h3
{[%clk 0:02:59.1]} 4... Bxf3 {[%clk 0:02:58]} 5. Qxf3 {[%clk 0:03:00]} 5... Nf6
{[%clk 0:02:58.1]} 6. Be2 {[%clk 0:02:55.2]} 6... e6 {[%clk 0:02:56.7]} 7. O-O
{[%clk 0:02:55]} 7... Bb4 {[%clk 0:02:55.2]} 8. e5 {[%clk 0:02:49.3]} 8... Nfd7
{[%clk 0:02:54.2]} 9. Qg4 {[%clk 0:02:45.7]} 9... Bxc3 {[%clk 0:02:41]} 10. bxc3
{[%clk 0:02:45.2]} 10... O-O {[%clk 0:02:36.7]} 11. d4 {[%clk 0:02:45.2]} 11...
f5 {[%clk 0:02:35.4]} 12. exf6 {[%clk 0:02:43.1]} 12... Qxf6 {[%clk 0:02:33.6]}
13. Bd3 {[%clk 0:02:35]} 13... e5 {[%clk 0:02:28.8]} 14. Bg5 {[%clk 0:02:31.1]}
14... Qf7 {[%clk 0:02:20]} 15. Rae1 {[%clk 0:02:14.5]} 15... e4 {[%clk
0:02:17.9]} 16. Be2 {[%clk 0:02:13.9]} 16... Nf6 {[%clk 0:02:17.1]} 17. Qg3
{[%clk 0:02:12.4]} 17... Nbd7 {[%clk 0:02:14.4]} 18. f4 {[%clk 0:02:06]} 18...
h6 {[%clk 0:02:06.6]} 19. Bxh6 {[%clk 0:02:03.7]} 19... Nh7 {[%clk 0:01:46.6]}
20. Bg4 {[%clk 0:01:41.2]} 20... Kh8 {[%clk 0:01:21.1]} 21. Be6 {[%clk
0:01:40.4]} 21... Qe7 {[%clk 0:01:21.1]} 22. Qxg7+ {[%clk 0:01:38.9]} 22... Qxg7
{[%clk 0:01:20.2]} 23. Bxg7+ {[%clk 0:01:39.8]} 23... Kxg7 {[%clk 0:01:20.7]}
24. Bxd7 {[%clk 0:01:40.7]} 24... Nf6 {[%clk 0:01:14.5]} 25. Be6 {[%clk
0:01:38.1]} 25... Rae8 {[%clk 0:01:13.4]} 26. f5 {[%clk 0:01:37.9]} 26... Nh5
{[%clk 0:01:12.1]} 27. c4 {[%clk 0:01:28]} 27... Rd8 {[%clk 0:00:55.5]} 28. cxd5
{[%clk 0:01:21.1]} 28... cxd5 {[%clk 0:00:55.5]} 29. c4 {[%clk 0:01:21.5]} 29...
dxc4 {[%clk 0:00:54.6]} 30. Rxe4 {[%clk 0:01:20.8]} 30... Kf6 {[%clk 0:00:53.2]}
31. Bxc4 {[%clk 0:01:18.4]} 31... Ng3 {[%clk 0:00:45.5]} 32. Re6+ {[%clk
0:01:18.3]} 32... Kg5 {[%clk 0:00:45.7]} 33. Rg6+ {[%clk 0:01:18]} 1-0

[Event "*** SCC Grand Prix: Titled Tuesday Blitz"]
[Site "Chess.com"]
[Date "2020.09.08"]
[Round "2"]
[White "MikaelyanArman"]
[Black "Sergey85Rodchenkov"]
[Result "1-0"]
[WhiteElo "2744"]
[BlackElo "2497"]
[TimeControl "180+1"]
[EndTime "10:16:12 PDT"]
[Termination "MikaelyanArman won by resignation"]

1. d4 {[%clk 0:03:00.9]} 1... Nf6 {[%clk 0:02:59.4]} 2. c4 {[%clk 0:03:01.1]}
2... e6 {[%clk 0:02:59.4]} 3. Nf3 {[%clk 0:03:01]} 3... b6 {[%clk 0:02:59.1]} 4.
a3 {[%clk 0:02:59.9]} 4... Bb7 {[%clk 0:02:59.2]} 5. Nc3 {[%clk 0:03:00.1]} 5...
Ne4 {[%clk 0:02:59.5]} 6. Nxe4 {[%clk 0:02:58.3]} 6... Bxe4 {[%clk 0:03:00]} 7.
Nd2 {[%clk 0:02:58.9]} 7... Bg6 {[%clk 0:02:59.7]} 8. g3 {[%clk 0:02:52.9]} 8...
d5 {[%clk 0:02:57.8]} 9. Bg2 {[%clk 0:02:52.9]} 9... c6 {[%clk 0:02:58.3]} 10.
O-O {[%clk 0:02:52.3]} 10... Be7 {[%clk 0:02:57.8]} 11. b3 {[%clk 0:02:45.7]}
11... O-O {[%clk 0:02:56.6]} 12. Bb2 {[%clk 0:02:46.2]} 12... Nd7 {[%clk
0:02:53.3]} 13. e4 {[%clk 0:02:46.1]} 13... dxe4 {[%clk 0:02:50.6]} 14. Nxe4
{[%clk 0:02:47]} 14... Rc8 {[%clk 0:02:50.6]} 15. Qe2 {[%clk 0:02:45.5]} 15...
Re8 {[%clk 0:02:48.1]} 16. Rfd1 {[%clk 0:02:45]} 16... Bf8 {[%clk 0:02:42.6]}
17. h4 {[%clk 0:02:42.3]} 17... h6 {[%clk 0:02:41.2]} 18. Rd2 {[%clk 0:02:28.1]}
18... Qc7 {[%clk 0:02:18.7]} 19. Rad1 {[%clk 0:02:26]} 19... Rcd8 {[%clk
0:02:14.8]} 20. h5 {[%clk 0:02:18.8]} 20... Bh7 {[%clk 0:02:13.7]} 21. b4 {[%clk
0:02:14.7]} 21... b5 {[%clk 0:02:03.4]} 22. cxb5 {[%clk 0:01:56.7]} 22... cxb5
{[%clk 0:02:03.4]} 23. Qxb5 {[%clk 0:01:57.1]} 23... Nb6 {[%clk 0:02:03.4]} 24.
Rc1 {[%clk 0:01:53.1]} 24... Qb8 {[%clk 0:02:02.7]} 25. Nc5 {[%clk 0:01:47.6]}
25... Nd5 {[%clk 0:01:37.3]} 26. Qxb8 {[%clk 0:01:42]} 26... Rxb8 {[%clk
0:01:37]} 27. Nd7 {[%clk 0:01:30.5]} 27... Rbd8 {[%clk 0:01:32.8]} 28. Nxf8
{[%clk 0:01:28.3]} 28... Kxf8 {[%clk 0:01:32.1]} 29. Rc5 {[%clk 0:01:23.9]}
29... Rd7 {[%clk 0:01:30.5]} 30. b5 {[%clk 0:01:18.5]} 30... Red8 {[%clk
0:01:29.7]} 31. a4 {[%clk 0:01:17.8]} 31... Bf5 {[%clk 0:01:24.5]} 32. Ba3
{[%clk 0:01:16.7]} 32... Ke8 {[%clk 0:01:21.4]} 33. a5 {[%clk 0:01:16.9]} 33...
Rb8 {[%clk 0:01:19.2]} 34. Rb2 {[%clk 0:01:11.3]} 34... Kd8 {[%clk 0:01:17.5]}
35. Bf3 {[%clk 0:01:08.2]} 35... Bd3 {[%clk 0:01:09.1]} 36. Rb3 {[%clk
0:01:05.8]} 36... Bc2 {[%clk 0:01:06.2]} 37. Rxc2 {[%clk 0:01:04.9]} 1-0

[Event "*** SCC Grand Prix: Titled Tuesday Blitz"]
[Site "Chess.com"]
[Date "2020.09.08"]
[Round "2"]
[White "Andreikka"]
[Black "Keures"]
[Result "1-0"]
[WhiteElo "2809"]
[BlackElo "2340"]
[TimeControl "180+1"]
[EndTime "10:16:17 PDT"]
[Termination "Andreikka won by resignation"]

1. e4 {[%clk 0:03:00.9]} 1... e6 {[%clk 0:02:59.5]} 2. d4 {[%clk 0:03:00.6]}
2... d5 {[%clk 0:02:53.9]} 3. Bd3 {[%clk 0:03:00.1]} 3... Be7 {[%clk 0:02:47.4]}
4. Nc3 {[%clk 0:02:57.8]} 4... dxe4 {[%clk 0:02:40.4]} 5. Bxe4 {[%clk
0:02:57.5]} 5... Nf6 {[%clk 0:02:40.6]} 6. Bf3 {[%clk 0:02:57.9]} 6... O-O
{[%clk 0:02:38.2]} 7. Nge2 {[%clk 0:02:57.5]} 7... c5 {[%clk 0:02:38.4]} 8. O-O
{[%clk 0:02:58.1]} 8... Nc6 {[%clk 0:02:36.7]} 9. Be3 {[%clk 0:02:57.5]} 9...
cxd4 {[%clk 0:02:34.1]} 10. Nxd4 {[%clk 0:02:58]} 10... Nxd4 {[%clk 0:02:34]}
11. Bxd4 {[%clk 0:02:57]} 11... Bd7 {[%clk 0:02:27.7]} 12. Bxb7 {[%clk
0:02:38.3]} 12... Rb8 {[%clk 0:02:27.9]} 13. Bf3 {[%clk 0:02:39]} 13... Rxb2
{[%clk 0:02:27.6]} 14. Nd5 {[%clk 0:02:39.6]} 14... Rb5 {[%clk 0:02:16.1]} 15.
c4 {[%clk 0:02:28.1]} 15... Ra5 {[%clk 0:02:11.9]} 16. Nxf6+ {[%clk 0:02:06.6]}
16... Bxf6 {[%clk 0:02:05.6]} 17. Bxf6 {[%clk 0:02:06.7]} 17... gxf6 {[%clk
0:02:05.9]} 18. Qd2 {[%clk 0:02:07.3]} 18... Bc8 {[%clk 0:01:48.3]} 19. Qh6
{[%clk 0:02:05]} 19... Rg5 {[%clk 0:01:41.6]} 20. Rad1 {[%clk 0:02:04.2]} 20...
Qe7 {[%clk 0:01:41.8]} 21. Rd4 {[%clk 0:02:03.3]} 21... Rg6 {[%clk 0:01:38.8]}
22. Qd2 {[%clk 0:02:03.4]} 22... Bb7 {[%clk 0:01:36.5]} 23. Bxb7 {[%clk
0:01:49.8]} 23... Qxb7 {[%clk 0:01:37.4]} 24. g3 {[%clk 0:01:50.5]} 24... Rc8
{[%clk 0:01:31.8]} 25. Rc1 {[%clk 0:01:50]} 25... Qc6 {[%clk 0:01:30.1]} 26. c5
{[%clk 0:01:45.3]} 26... Kg7 {[%clk 0:01:29]} 27. Rd6 {[%clk 0:01:44.9]} 27...
Qa4 {[%clk 0:01:25.5]} 28. c6 {[%clk 0:01:43.8]} 28... Rg5 {[%clk 0:01:02.3]}
29. c7 {[%clk 0:01:43.1]} 29... Qe4 {[%clk 0:00:26.5]} 30. Rd8 {[%clk
0:01:36.5]} 30... Qa8 {[%clk 0:00:26.3]} 31. Qd7 {[%clk 0:01:32.5]} 1-0

[Event "*** SCC Grand Prix: Titled Tuesday Blitz"]
[Site "Chess.com"]
[Date "2020.09.08"]
[Round "2"]
[White "kobemagic"]
[Black "reniite"]
[Result "1-0"]
[WhiteElo "2355"]
[BlackElo "1892"]
[TimeControl "180+1"]
[EndTime "10:16:23 PDT"]
[Termination "kobemagic won on time"]

1. c4 {[%clk 0:03:00.9]} 1... e5 {[%clk 0:02:44.4]} 2. g3 {[%clk 0:03:00.4]}
2... d5 {[%clk 0:02:22.5]} 3. Bg2 {[%clk 0:02:47.5]} 3... Nf6 {[%clk 0:02:15.8]}
4. cxd5 {[%clk 0:02:44.8]} 4... Nxd5 {[%clk 0:02:10.1]} 5. Nf3 {[%clk
0:02:44.9]} 5... Nc6 {[%clk 0:01:48.9]} 6. O-O {[%clk 0:02:43.5]} 6... Be7
{[%clk 0:01:44.1]} 7. d4 {[%clk 0:02:41.2]} 7... exd4 {[%clk 0:01:31.4]} 8. Nxd4
{[%clk 0:02:42.1]} 8... Nxd4 {[%clk 0:01:24.1]} 9. Qxd4 {[%clk 0:02:43]} 9...
Nf6 {[%clk 0:01:19.8]} 10. Qa4+ {[%clk 0:02:40.6]} 10... c6 {[%clk 0:01:10.9]}
11. Qb3 {[%clk 0:02:22.6]} 11... O-O {[%clk 0:01:06]} 12. Rd1 {[%clk 0:02:19.7]}
12... Qb6 {[%clk 0:01:02.3]} 13. Qxb6 {[%clk 0:02:17.5]} 13... axb6 {[%clk
0:01:00.5]} 14. Nc3 {[%clk 0:02:18.4]} 14... Be6 {[%clk 0:00:54.2]} 15. Be3
{[%clk 0:02:16.6]} 15... Rfd8 {[%clk 0:00:50.8]} 16. Bxb6 {[%clk 0:02:11]} 16...
Rxd1+ {[%clk 0:00:45.4]} 17. Rxd1 {[%clk 0:02:11.9]} 17... Kf8 {[%clk
0:00:38.9]} 18. a3 {[%clk 0:02:05.8]} 18... h6 {[%clk 0:00:32.2]} 19. h3 {[%clk
0:02:04.3]} 19... g5 {[%clk 0:00:27.7]} 20. e4 {[%clk 0:02:03.6]} 20... Kg7
{[%clk 0:00:24.1]} 21. e5 {[%clk 0:01:55.8]} 21... Nd7 {[%clk 0:00:20.7]} 22.
Bc7 {[%clk 0:01:56]} 22... Rc8 {[%clk 0:00:12.4]} 23. Bd6 {[%clk 0:01:55.7]}
23... Bxd6 {[%clk 0:00:08]} 24. exd6 {[%clk 0:01:56.6]} 24... Nc5 {[%clk
0:00:04.4]} 25. b4 {[%clk 0:01:45.9]} 25... Na6 {[%clk 0:00:02.5]} 26. b5 {[%clk
0:01:40.8]} 1-0

[Event "*** SCC Grand Prix: Titled Tuesday Blitz"]
[Site "Chess.com"]
[Date "2020.09.08"]
[Round "2"]
[White "Mikhail_Golubev"]
[Black "Hikaru"]
[Result "1/2-1/2"]
[WhiteElo "2613"]
[BlackElo "3208"]
[TimeControl "180+1"]
[EndTime "10:16:26 PDT"]
[Termination "Game drawn by agreement"]

1. e4 {[%clk 0:02:58.8]} 1... d5 {[%clk 0:02:59.7]} 2. exd5 {[%clk 0:02:58]}
2... Qxd5 {[%clk 0:03:00.6]} 3. Nf3 {[%clk 0:02:57.7]} 3... Nc6 {[%clk
0:02:58.5]} 4. Be2 {[%clk 0:02:54.4]} 4... Bg4 {[%clk 0:02:58.1]} 5. d4 {[%clk
0:02:51.4]} 5... O-O-O {[%clk 0:02:54.8]} 6. c4 {[%clk 0:02:41.8]} 6... Qa5+
{[%clk 0:02:54.3]} 7. Bd2 {[%clk 0:02:27]} 7... Qf5 {[%clk 0:02:52.2]} 8. Be3
{[%clk 0:01:55.6]} 8... Nf6 {[%clk 0:02:45.7]} 9. Nbd2 {[%clk 0:01:51.7]} 9...
e6 {[%clk 0:02:40.6]} 10. a3 {[%clk 0:01:48.1]} 10... h6 {[%clk 0:02:27.5]} 11.
O-O {[%clk 0:01:40.1]} 11... g5 {[%clk 0:02:26.4]} 12. b4 {[%clk 0:01:36.1]}
12... Bxf3 {[%clk 0:02:25.8]} 13. Nxf3 {[%clk 0:01:10.3]} 13... g4 {[%clk
0:02:26]} 14. Nh4 {[%clk 0:01:04.6]} 14... Qh5 {[%clk 0:02:26]} 15. b5 {[%clk
0:00:56.1]} 15... Nxd4 {[%clk 0:02:13.1]} 16. Bxd4 {[%clk 0:00:55.9]} 16... Qxh4
{[%clk 0:02:13.5]} 17. Qa4 {[%clk 0:00:39.1]} 17... Rxd4 {[%clk 0:02:13.2]} 18.
Qxa7 {[%clk 0:00:38.8]} 18... e5 {[%clk 0:02:05]} 19. c5 {[%clk 0:00:26.7]}
19... Kd8 {[%clk 0:01:39.3]} 20. Qb8+ {[%clk 0:00:23]} 20... Ke7 {[%clk
0:01:39.2]} 21. Qxc7+ {[%clk 0:00:22.7]} 21... Ke6 {[%clk 0:01:39.1]} 22. Qc8+
{[%clk 0:00:22.6]} 22... Ke7 {[%clk 0:01:36.2]} 23. Qc7+ {[%clk 0:00:22.7]}
23... Ke6 {[%clk 0:01:24.3]} 24. Qc8+ {[%clk 0:00:22.3]} 24... Nd7 {[%clk
0:01:24.3]} 25. c6 {[%clk 0:00:19.5]} 25... bxc6 {[%clk 0:01:25]} 26. bxc6
{[%clk 0:00:19.2]} 26... Bg7 {[%clk 0:01:25.1]} 27. cxd7 {[%clk 0:00:18.8]}
27... Rxd7 {[%clk 0:01:25.3]} 28. Bc4+ {[%clk 0:00:16.9]} 28... Ke7 {[%clk
0:01:25.2]} 29. Qc5+ {[%clk 0:00:17]} 29... Kf6 {[%clk 0:01:25.5]} 30. Qc6+
{[%clk 0:00:16.9]} 30... Ke7 {[%clk 0:01:26]} 31. Qc5+ {[%clk 0:00:15.2]} 31...
Kf6 {[%clk 0:01:25.1]} 32. Qc6+ {[%clk 0:00:15.2]} 32... Ke7 {[%clk 0:01:24.1]}
1/2-1/2

[Event "*** SCC Grand Prix: Titled Tuesday Blitz"]
[Site "Chess.com"]
[Date "2020.09.08"]
[Round "2"]
[White "Mambastik-Fantastic"]
[Black "Mr_Sinigami"]
[Result "0-1"]
[WhiteElo "2299"]
[BlackElo "2543"]
[TimeControl "180+1"]
[EndTime "10:16:26 PDT"]
[Termination "Mr_Sinigami won by resignation"]

1. e4 {[%clk 0:03:00.9]} 1... c5 {[%clk 0:02:56.6]} 2. Nf3 {[%clk 0:02:59.4]}
2... e6 {[%clk 0:02:56.5]} 3. d4 {[%clk 0:02:59.1]} 3... cxd4 {[%clk 0:02:57.4]}
4. Nxd4 {[%clk 0:02:58.9]} 4... a6 {[%clk 0:02:58.1]} 5. c4 {[%clk 0:02:56.9]}
5... Qc7 {[%clk 0:02:56.9]} 6. Be3 {[%clk 0:02:54.5]} 6... Nf6 {[%clk
0:02:56.7]} 7. Nc3 {[%clk 0:02:53.4]} 7... Bb4 {[%clk 0:02:55.8]} 8. Bd3 {[%clk
0:02:49.9]} 8... Nc6 {[%clk 0:02:52.1]} 9. Rc1 {[%clk 0:02:46.3]} 9... Ne5
{[%clk 0:02:47]} 10. h3 {[%clk 0:02:29.1]} 10... O-O {[%clk 0:02:41.5]} 11. O-O
{[%clk 0:02:27.4]} 11... Nxd3 {[%clk 0:02:35.2]} 12. Qxd3 {[%clk 0:02:26.7]}
12... Be7 {[%clk 0:02:33.4]} 13. Rfd1 {[%clk 0:02:24.9]} 13... d6 {[%clk
0:02:32.8]} 14. a3 {[%clk 0:02:19.8]} 14... b6 {[%clk 0:02:32]} 15. b4 {[%clk
0:02:14.6]} 15... Bb7 {[%clk 0:02:31.5]} 16. Nb3 {[%clk 0:02:06.4]} 16... Rac8
{[%clk 0:02:27.3]} 17. Na4 {[%clk 0:01:58.2]} 17... Bxe4 {[%clk 0:02:15]} 18.
Qd4 {[%clk 0:01:40.7]} 18... Bxg2 {[%clk 0:01:51.1]} 19. Nxb6 {[%clk 0:01:31.9]}
19... Bxh3 {[%clk 0:01:39]} 20. Nxc8 {[%clk 0:01:31]} 20... Qxc8 {[%clk
0:01:36.7]} 21. c5 {[%clk 0:01:28]} 21... e5 {[%clk 0:01:36.1]} 22. Qh4 {[%clk
0:01:20.3]} 22... d5 {[%clk 0:01:33.7]} 23. Bg5 {[%clk 0:01:09.8]} 23... h6
{[%clk 0:01:32.3]} 24. Bxf6 {[%clk 0:01:09]} 24... Bxf6 {[%clk 0:01:31]} 25. Qg3
{[%clk 0:01:09.6]} 25... d4 {[%clk 0:01:28]} 26. a4 {[%clk 0:01:05.7]} 26... Re8
{[%clk 0:01:24.2]} 27. b5 {[%clk 0:01:05.3]} 27... axb5 {[%clk 0:01:23.6]} 28.
axb5 {[%clk 0:01:04.8]} 28... Bg5 {[%clk 0:01:23.8]} 29. Ra1 {[%clk 0:00:56.6]}
29... Bf4 {[%clk 0:01:22.9]} 30. Qh4 {[%clk 0:00:51.9]} 30... Re6 {[%clk
0:01:21.4]} 31. Qxh3 {[%clk 0:00:46.7]} 31... Rg6+ {[%clk 0:01:20.4]} 32. Qg2
{[%clk 0:00:47]} 32... Qh3 {[%clk 0:01:15.2]} 33. Qxg6 {[%clk 0:00:44]} 33...
Bh2+ {[%clk 0:01:13]} 34. Kh1 {[%clk 0:00:43.6]} 34... Bg3+ {[%clk 0:01:12.8]}
0-1

[Event "*** SCC Grand Prix: Titled Tuesday Blitz"]
[Site "Chess.com"]
[Date "2020.09.08"]
[Round "2"]
[White "AsaHoffmann"]
[Black "lelya96"]
[Result "1-0"]
[WhiteElo "2409"]
[BlackElo "2160"]
[TimeControl "180+1"]
[EndTime "10:16:33 PDT"]
[Termination "AsaHoffmann won by resignation"]

1. d4 {[%clk 0:02:56.6]} 1... d5 {[%clk 0:02:58.6]} 2. Bg5 {[%clk 0:02:55.3]}
2... c5 {[%clk 0:02:51.6]} 3. dxc5 {[%clk 0:02:54.3]} 3... Qa5+ {[%clk
0:02:44.1]} 4. Nc3 {[%clk 0:02:53.4]} 4... e6 {[%clk 0:02:37.9]} 5. e4 {[%clk
0:02:51]} 5... Bxc5 {[%clk 0:02:29.1]} 6. exd5 {[%clk 0:02:49.8]} 6... Bb4
{[%clk 0:02:22]} 7. Bd2 {[%clk 0:02:47.6]} 7... Nf6 {[%clk 0:02:07]} 8. dxe6
{[%clk 0:02:46.3]} 8... Bxe6 {[%clk 0:01:53.6]} 9. Nf3 {[%clk 0:02:44.2]} 9...
O-O {[%clk 0:01:50]} 10. Bd3 {[%clk 0:02:43.2]} 10... Nc6 {[%clk 0:01:40.2]} 11.
O-O {[%clk 0:02:41.7]} 11... Bg4 {[%clk 0:01:39.8]} 12. h3 {[%clk 0:02:39.7]}
12... Bh5 {[%clk 0:01:38]} 13. a3 {[%clk 0:02:37.2]} 13... Bd6 {[%clk 0:01:18]}
14. Ne4 {[%clk 0:02:32.6]} 14... Qd8 {[%clk 0:01:16.1]} 15. Nxd6 {[%clk
0:02:22.7]} 15... Qxd6 {[%clk 0:01:13.1]} 16. Bb4 {[%clk 0:02:22.2]} 16... Qc7
{[%clk 0:00:50.2]} 17. Bxf8 {[%clk 0:02:20.9]} 17... Rxf8 {[%clk 0:00:51.1]} 18.
Re1 {[%clk 0:02:18.6]} 18... Nd4 {[%clk 0:00:47.7]} 19. Be2 {[%clk 0:01:57.2]}
19... Nxf3+ {[%clk 0:00:37.4]} 20. Bxf3 {[%clk 0:01:56.4]} 20... Bxf3 {[%clk
0:00:37.4]} 21. Qxf3 {[%clk 0:01:54.1]} 21... Qxc2 {[%clk 0:00:37.9]} 22. Qxb7
{[%clk 0:01:49.7]} 22... a5 {[%clk 0:00:35.7]} 23. Rac1 {[%clk 0:01:48.6]} 23...
Qf5 {[%clk 0:00:34.5]} 24. Qf3 {[%clk 0:01:46.9]} 24... Qg5 {[%clk 0:00:32.9]}
25. Rc3 {[%clk 0:01:38.9]} 25... h6 {[%clk 0:00:30.8]} 26. Rce3 {[%clk
0:01:36.6]} 26... Rc8 {[%clk 0:00:28.8]} 27. b4 {[%clk 0:01:34.9]} 27... axb4
{[%clk 0:00:20.3]} 28. axb4 {[%clk 0:01:34.4]} 28... Qb5 {[%clk 0:00:21]} 29.
Rb1 {[%clk 0:01:26.5]} 29... Rc4 {[%clk 0:00:20.5]} 30. Qe2 {[%clk 0:01:23.8]}
30... Nd5 {[%clk 0:00:20.2]} 31. Re5 {[%clk 0:01:20]} 31... Qd7 {[%clk
0:00:16.3]} 32. Qxc4 {[%clk 0:01:15.7]} 1-0